[Event "Paul Kerese Mälestusfestival 2022 Kiirturniir"]
[Site "Pärnu, Estonia Resort Hotel & Spa"]
[Date "????.??.??"]
[Round "6.1"]
[White "Agrest, Evgenij"]
[Black "Maiorov, Nikita"]
[Result "1/2-1/2"]
[TimeControl "15 minutit partiile + 3 sek käigule"]
[WhiteTitle "GM"]
[BlackTitle "GM"]
[WhiteElo "2563"]
[BlackElo "2431"]

1. Nf3 {[%clk 00:14:47]} {[%emt 00:00:15]} d5 {[%clk 00:14:58]} {[%emt
00:00:13]} 2. e3 {[%clk 00:14:43]} {[%emt 00:00:07]} Nf6 {[%clk 00:14:45]}
{[%emt 00:00:16]} 3. c4 {[%clk 00:14:42]} {[%emt 00:00:03]} e6 {[%clk
00:14:43]} {[%emt 00:00:04]} 4. b3 {[%clk 00:14:41]} {[%emt 00:00:04]} c5
{[%clk 00:14:33]} {[%emt 00:00:13]} 5. Bb2 {[%clk 00:14:31]} {[%emt 00:00:13]}
Nc6 {[%clk 00:14:33]} {[%emt 00:00:03]} 6. cxd5 {[%clk 00:14:07]} {[%emt
00:00:27]} exd5 {[%clk 00:14:34]} {[%emt 00:00:02]} 7. Nc3 {[%clk 00:13:16]}
{[%emt 00:00:54]} a6 {[%clk 00:14:19]} {[%emt 00:00:18]} 8. Rc1 {[%clk
00:12:11]} {[%emt 00:01:08]} Bd6 {[%clk 00:14:11]} {[%emt 00:00:11]} 9. Be2
{[%clk 00:11:45]} {[%emt 00:00:29]} O-O {[%clk 00:14:11]} {[%emt 00:00:03]} 10.
d4 {[%clk 00:11:47]} {[%emt 00:00:01]} Qe7 {[%clk 00:10:44]} {[%emt 00:03:30]}
11. dxc5 {[%clk 00:10:14]} {[%emt 00:01:35]} Bxc5 {[%clk 00:10:45]} {[%emt
00:00:02]} 12. O-O {[%clk 00:09:47]} {[%emt 00:00:30]} Rd8 {[%clk 00:10:45]}
{[%emt 00:00:03]} 13. Na4 {[%clk 00:09:24]} {[%emt 00:00:25]} Ba7 {[%clk
00:10:46]} {[%emt 00:00:03]} 14. Nd4 {[%clk 00:09:14]} {[%emt 00:00:13]} Bd7
{[%clk 00:10:11]} {[%emt 00:00:38]} 15. Nxc6 {[%clk 00:08:07]} {[%emt
00:01:11]} Bxc6 {[%clk 00:10:13]} {[%emt 00:00:01]} 16. Bd4 {[%clk 00:08:08]}
{[%emt 00:00:01]} Bxa4 {[%clk 00:10:14]} {[%emt 00:00:02]} 17. bxa4 {[%clk
00:08:05]} {[%emt 00:00:06]} Bxd4 {[%clk 00:10:14]} {[%emt 00:00:03]} 18. Qxd4
{[%clk 00:08:06]} {[%emt 00:00:02]} Rac8 {[%clk 00:10:12]} {[%emt 00:00:04]} 19.
Qb2 {[%clk 00:07:09]} {[%emt 00:01:00]} h6 {[%clk 00:10:05]} {[%emt 00:00:10]}
20. a3 {[%clk 00:06:31]} {[%emt 00:00:42]} Qd7 {[%clk 00:09:34]} {[%emt
00:00:33]} 21. a5 {[%clk 00:05:45]} {[%emt 00:00:50]} Rxc1 {[%clk 00:09:26]}
{[%emt 00:00:11]} 22. Rxc1 {[%clk 00:05:46]} {[%emt 00:00:02]} Rc8 {[%clk
00:09:28]} 23. h3 {[%clk 00:04:37]} {[%emt 00:01:11]} Rc7 {[%clk 00:09:11]}
{[%emt 00:00:20]} 24. Bf3 {[%clk 00:03:49]} {[%emt 00:00:52]} Qc8 {[%clk
00:08:55]} {[%emt 00:00:19]} 25. Rxc7 {[%clk 00:03:40]} {[%emt 00:00:12]} Qxc7
{[%clk 00:08:56]} {[%emt 00:00:02]} 26. Qb4 {[%clk 00:03:30]} {[%emt 00:00:13]}
Qc1+ {[%clk 00:08:25]} {[%emt 00:00:34]} 27. Kh2 {[%clk 00:03:32]} {[%emt
00:00:02]} Qc7+ {[%clk 00:08:27]} {[%emt 00:00:02]} 28. Kg1 {[%clk 00:03:16]}
{[%emt 00:00:19]} Qc1+ {[%clk 00:08:28]} {[%emt 00:00:01]} 29. Kh2 {[%clk
00:03:18]} {[%emt 00:00:01]} Qc7+ {[%clk 00:08:28]} {[%emt 00:00:02]} 30. g3
{[%clk 00:03:17]} {[%emt 00:00:05]} Qc6 {[%clk 00:06:44]} {[%emt 00:01:47]} 31.
Kg2 {[%clk 00:02:54]} {[%emt 00:00:26]} Qc7 {[%clk 00:06:18]} {[%emt 00:00:29]}
32. Kh2 {[%clk 00:02:49]} {[%emt 00:00:08]} Qc6 {[%clk 00:06:17]} {[%emt
00:00:04]} 33. Kg2 {[%clk 00:02:50]} {[%emt 00:00:02]} Qc7 {[%clk 00:06:19]}
1/2-1/2

[Event "Paul Kerese Mälestusfestival 2022 Kiirturniir"]
[Site "Pärnu, Estonia Resort Hotel & Spa"]
[Date "????.??.??"]
[Round "6.2"]
[White "Volodin, Aleksandr"]
[Black "Chukavin, Kirill"]
[Result "1-0"]
[TimeControl "15 minutit partiile + 3 sek käigule"]
[WhiteTitle "GM"]
[BlackTitle "FM"]
[WhiteElo "2407"]
[BlackElo "2418"]

1. d4 {[%clk 00:15:01]} {[%emt 00:00:05]} Nf6 {[%clk 00:15:01]} {[%emt
00:00:05]} 2. c4 {[%clk 00:14:59]} {[%emt 00:00:05]} e6 {[%clk 00:15:01]}
{[%emt 00:00:03]} 3. g3 {[%clk 00:15:01]} {[%emt 00:00:02]} d5 {[%clk
00:14:58]} {[%emt 00:00:05]} 4. Bg2 {[%clk 00:15:03]} Bb4+ {[%clk 00:14:45]}
{[%emt 00:00:17]} 5. Bd2 {[%clk 00:15:04]} {[%emt 00:00:01]} Bd6 {[%clk
00:14:47]} 6. Qc2 {[%clk 00:14:25]} {[%emt 00:00:44]} c6 {[%clk 00:14:30]}
{[%emt 00:00:20]} 7. Nf3 {[%clk 00:14:26]} {[%emt 00:00:02]} Nbd7 {[%clk
00:14:27]} {[%emt 00:00:07]} 8. O-O {[%clk 00:14:26]} {[%emt 00:00:02]} O-O
{[%clk 00:14:10]} {[%emt 00:00:20]} 9. a4 {[%clk 00:14:24]} {[%emt 00:00:05]}
Ne4 {[%clk 00:13:59]} {[%emt 00:00:13]} 10. Ne1 {[%clk 00:12:37]} {[%emt
00:01:50]} f5 {[%clk 00:13:16]} {[%emt 00:00:46]} 11. Nd3 {[%clk 00:12:38]}
{[%emt 00:00:02]} g5 {[%clk 00:10:46]} {[%emt 00:02:34]} 12. Be1 {[%clk
00:11:19]} {[%emt 00:01:22]} Qf6 {[%clk 00:10:08]} {[%emt 00:00:41]} 13. e3
{[%clk 00:08:11]} {[%emt 00:03:12]} f4 {[%clk 00:09:11]} {[%emt 00:01:00]} 14.
exf4 {[%clk 00:05:54]} {[%emt 00:02:20]} gxf4 {[%clk 00:08:52]} {[%emt
00:00:21]} 15. Nd2 {[%clk 00:05:15]} {[%emt 00:00:43]} Nxd2 {[%clk 00:08:12]}
{[%emt 00:00:44]} 16. Bxd2 {[%clk 00:05:13]} {[%emt 00:00:05]} Qxd4 {[%clk
00:05:48]} {[%emt 00:02:27]} 17. Nxf4 {[%clk 00:04:43]} {[%emt 00:00:33]} Bxf4
{[%clk 00:04:12]} {[%emt 00:01:38]} 18. Bxf4 {[%clk 00:04:45]} e5 {[%clk
00:04:14]} {[%emt 00:00:02]} 19. Bh6 {[%clk 00:03:50]} {[%emt 00:00:58]} Rf6
{[%clk 00:04:12]} {[%emt 00:00:05]} 20. Be3 {[%clk 00:03:21]} {[%emt 00:00:32]}
Qxc4 {[%clk 00:04:08]} {[%emt 00:00:08]} 21. Qxc4 {[%clk 00:03:08]} {[%emt
00:00:17]} dxc4 {[%clk 00:04:10]} {[%emt 00:00:01]} 22. Rfd1 {[%clk 00:03:02]}
{[%emt 00:00:09]} Nb6 {[%clk 00:01:23]} {[%emt 00:02:50]} 23. a5 {[%clk
00:03:03]} {[%emt 00:00:01]} Nd5 {[%clk 00:01:24]} {[%emt 00:00:01]} 24. Bxd5+
{[%clk 00:03:05]} cxd5 {[%clk 00:01:27]} 25. Rxd5 {[%clk 00:03:07]} {[%emt
00:00:01]} Bf5 {[%clk 00:01:02]} {[%emt 00:00:28]} 26. Rxe5 {[%clk 00:03:04]}
{[%emt 00:00:07]} Bd3 {[%clk 00:00:55]} {[%emt 00:00:09]} 27. Bd4 {[%clk
00:03:03]} {[%emt 00:00:04]} Rd6 {[%clk 00:00:44]} {[%emt 00:00:15]} 28. Bc5
{[%clk 00:02:54]} {[%emt 00:00:12]} Rd7 {[%clk 00:00:41]} {[%emt 00:00:06]} 29.
Rae1 {[%clk 00:02:50]} {[%emt 00:00:07]} b6 {[%clk 00:00:34]} {[%emt 00:00:11]}
30. axb6 {[%clk 00:02:32]} {[%emt 00:00:20]} axb6 {[%clk 00:00:36]} {[%emt
00:00:01]} 31. Bxb6 {[%clk 00:02:34]} {[%emt 00:00:01]} Ra2 {[%clk 00:00:28]}
{[%emt 00:00:11]} 32. Rb5 {[%clk 00:02:17]} {[%emt 00:00:20]} Kf7 {[%clk
00:00:21]} {[%emt 00:00:10]} 33. Rb4 {[%clk 00:01:57]} {[%emt 00:00:24]} Rb7
{[%clk 00:00:22]} {[%emt 00:00:02]} 34. Kg2 {[%clk 00:01:31]} {[%emt 00:00:28]}
Kg6 {[%clk 00:00:24]} {[%emt 00:00:01]} 35. Re6+ {[%clk 00:01:18]} {[%emt
00:00:17]} Kf5 {[%clk 00:00:23]} {[%emt 00:00:04]} 36. Re3 {[%clk 00:01:19]}
{[%emt 00:00:02]} Kg6 {[%clk 00:00:25]} {[%emt 00:00:01]} 37. h3 {[%clk
00:01:18]} {[%emt 00:00:04]} Kf5 {[%clk 00:00:16]} {[%emt 00:00:12]} 38. g4+
{[%clk 00:01:19]} {[%emt 00:00:02]} Kg6 {[%clk 00:00:19]} 39. Kg3 {[%clk
00:01:18]} {[%emt 00:00:04]} h5 {[%clk 00:00:12]} {[%emt 00:00:10]} 40. f4
{[%clk 00:01:18]} {[%emt 00:00:03]} hxg4 {[%clk 00:00:14]} {[%emt 00:00:01]} 41.
hxg4 {[%clk 00:01:21]} Ra1 {[%clk 00:00:08]} {[%emt 00:00:09]} 42. f5+ {[%clk
00:01:22]} {[%emt 00:00:02]} Kf7 {[%clk 00:00:08]} {[%emt 00:00:02]} 43. Re6
{[%emt 00:00:16]} Rf1 {[%clk 00:00:06]} {[%emt 00:00:01]} 44. Bc5 {[%clk
00:00:56]} {[%emt 00:00:21]} Rc7 {[%clk 00:00:08]} {[%emt 00:00:01]} 45. Bd4
{[%clk 00:00:55]} {[%emt 00:00:03]} Rd7 {[%clk 00:00:10]} {[%emt 00:00:01]} 46.
Bc3 {[%clk 00:00:50]} {[%emt 00:00:08]} Rg1+ {[%clk 00:00:12]} {[%emt
00:00:01]} 47. Kf4 {[%clk 00:00:52]} Bc2 {[%clk 00:00:08]} {[%emt 00:00:07]} 48.
Rf6+ {[%clk 00:00:42]} {[%emt 00:00:14]} Ke7 {[%clk 00:00:05]} {[%emt
00:00:05]} 49. Rbb6 {[%clk 00:00:42]} {[%emt 00:00:03]} Rf1+ {[%clk 00:00:06]}
{[%emt 00:00:02]} 50. Kg5 {[%clk 00:00:39]} {[%emt 00:00:05]} Rd3 {[%clk
00:00:04]} {[%emt 00:00:05]} 51. Bb4+ {[%clk 00:00:39]} {[%emt 00:00:03]} Kd7
{[%clk 00:00:06]} {[%emt 00:00:02]} 52. Rf7+ {[%clk 00:00:38]} {[%emt
00:00:03]} Kc8 {[%clk 00:00:07]} {[%emt 00:00:02]} 53. Rc6+ {[%clk 00:00:36]}
{[%emt 00:00:05]} Kd8 {[%clk 00:00:05]} {[%emt 00:00:05]} 54. Rh7 {[%clk
00:00:20]} {[%emt 00:00:18]} Rg1 {[%clk 00:00:04]} {[%emt 00:00:05]} 55. Ba5+
{[%clk 00:00:22]} {[%emt 00:00:01]} 1-0

[Event "Paul Kerese Mälestusfestival 2022 Kiirturniir"]
[Site "Pärnu, Estonia Resort Hotel & Spa"]
[Date "????.??.??"]
[Round "6.3"]
[White "Kantans, Toms"]
[Black "Olde, Grete"]
[Result "1-0"]
[TimeControl "15 minutit partiile + 3 sek käigule"]
[WhiteTitle "GM"]
[BlackTitle "WCM"]
[WhiteElo "2422"]
[BlackElo "2054"]

1. e4 {[%clk 00:15:05]} e5 {[%clk 00:15:04]} {[%emt 00:00:02]} 2. Nf3 {[%clk
00:15:07]} {[%emt 00:00:01]} Nc6 {[%clk 00:15:06]} {[%emt 00:00:01]} 3. Bb5
{[%clk 00:15:07]} {[%emt 00:00:03]} a6 {[%clk 00:15:07]} {[%emt 00:00:02]} 4.
Ba4 {[%clk 00:15:09]} {[%emt 00:00:01]} Nf6 {[%clk 00:15:06]} {[%emt 00:00:03]}
5. O-O {[%clk 00:15:10]} {[%emt 00:00:02]} Be7 {[%clk 00:15:04]} {[%emt
00:00:06]} 6. Qe2 {[%clk 00:15:11]} {[%emt 00:00:02]} b5 {[%clk 00:14:45]}
{[%emt 00:00:21]} 7. Bb3 {[%clk 00:15:13]} {[%emt 00:00:01]} d6 {[%clk
00:14:38]} {[%emt 00:00:10]} 8. c3 {[%clk 00:15:14]} {[%emt 00:00:02]} O-O
{[%clk 00:14:31]} {[%emt 00:00:09]} 9. Rd1 {[%clk 00:15:16]} {[%emt 00:00:02]}
Na5 {[%clk 00:13:21]} {[%emt 00:01:13]} 10. Bc2 {[%clk 00:15:17]} {[%emt
00:00:01]} c5 {[%clk 00:13:21]} {[%emt 00:00:03]} 11. d4 {[%clk 00:15:19]}
{[%emt 00:00:01]} Nd7 {[%clk 00:12:32]} {[%emt 00:00:52]} 12. dxe5 {[%clk
00:14:59]} {[%emt 00:00:22]} dxe5 {[%clk 00:12:15]} {[%emt 00:00:20]} 13. Nxe5
{[%clk 00:14:59]} {[%emt 00:00:03]} Qc7 {[%clk 00:11:46]} {[%emt 00:00:32]} 14.
Nxd7 {[%clk 00:14:54]} {[%emt 00:00:08]} Bxd7 {[%clk 00:11:48]} {[%emt
00:00:02]} 15. Nd2 {[%clk 00:14:31]} {[%emt 00:00:26]} Bd6 {[%clk 00:11:20]}
{[%emt 00:00:31]} 16. Nf1 {[%clk 00:14:31]} {[%emt 00:00:03]} Rae8 {[%clk
00:11:00]} {[%emt 00:00:23]} 17. Qd3 {[%clk 00:14:00]} {[%emt 00:00:35]} 1-0

[Event "Paul Kerese Mälestusfestival 2022 Kiirturniir"]
[Site "Pärnu, Estonia Resort Hotel & Spa"]
[Date "????.??.??"]
[Round "6.4"]
[White "Agafonov, Yuri"]
[Black "Shvyrjov, Igor"]
[Result "1-0"]
[TimeControl "15 minutit partiile + 3 sek käigule"]
[BlackTitle "GM"]
[WhiteElo "2018"]
[BlackElo "2153"]

1. d4 {[%clk 00:15:04]} {[%emt 00:00:02]} d6 {[%clk 00:15:05]} {[%emt
00:00:01]} 2. Bg5 {[%clk 00:15:01]} {[%emt 00:00:05]} g6 {[%clk 00:15:02]}
{[%emt 00:00:06]} 3. c3 {[%clk 00:15:02]} {[%emt 00:00:02]} Bg7 {[%clk
00:15:03]} {[%emt 00:00:01]} 4. Nd2 {[%clk 00:14:41]} {[%emt 00:00:24]} Nf6
{[%clk 00:15:03]} {[%emt 00:00:03]} 5. e4 {[%clk 00:14:39]} {[%emt 00:00:05]}
h6 {[%clk 00:14:59]} {[%emt 00:00:07]} 6. Bh4 {[%clk 00:14:41]} {[%emt
00:00:02]} O-O {[%clk 00:14:54]} {[%emt 00:00:08]} 7. Be2 {[%clk 00:14:40]}
{[%emt 00:00:04]} c6 {[%clk 00:14:29]} {[%emt 00:00:28]} 8. f4 {[%clk
00:14:06]} {[%emt 00:00:36]} Qc7 {[%clk 00:13:12]} {[%emt 00:01:21]} 9. h3
{[%clk 00:12:53]} {[%emt 00:01:16]} Re8 {[%clk 00:12:17]} {[%emt 00:00:57]} 10.
g4 {[%clk 00:12:07]} {[%emt 00:00:48]} c5 {[%clk 00:11:43]} {[%emt 00:00:38]}
11. Ngf3 {[%clk 00:11:26]} {[%emt 00:00:43]} d5 {[%clk 00:09:54]} {[%emt
00:01:52]} 12. e5 {[%clk 00:10:46]} {[%emt 00:00:43]} Ne4 {[%clk 00:09:54]}
{[%emt 00:00:03]} 13. Bd3 {[%clk 00:10:00]} {[%emt 00:00:49]} f5 {[%clk
00:09:40]} {[%emt 00:00:17]} 14. gxf5 {[%clk 00:09:01]} {[%emt 00:01:02]} Bxf5
{[%clk 00:09:40]} {[%emt 00:00:03]} 15. Qe2 {[%clk 00:08:51]} {[%emt 00:00:12]}
Nxd2 {[%clk 00:08:46]} {[%emt 00:00:57]} 16. Qxd2 {[%clk 00:07:30]} {[%emt
00:01:25]} Rf8 {[%clk 00:05:23]} {[%emt 00:03:27]} 17. Rg1 {[%clk 00:06:50]}
{[%emt 00:00:42]} g5 {[%clk 00:03:19]} {[%emt 00:02:08]} 18. fxg5 {[%clk
00:06:28]} {[%emt 00:00:25]} h5 {[%clk 00:03:20]} {[%emt 00:00:02]} 19. Bxf5
{[%clk 00:02:58]} {[%emt 00:03:34]} Rxf5 {[%clk 00:03:22]} {[%emt 00:00:01]} 20.
Qd3 {[%clk 00:02:59]} {[%emt 00:00:01]} e6 {[%clk 00:03:02]} {[%emt 00:00:23]}
21. O-O-O {[%clk 00:02:47]} {[%emt 00:00:15]} Nc6 {[%clk 00:02:52]} {[%emt
00:00:13]} 22. dxc5 {[%clk 00:02:26]} {[%emt 00:00:24]} Raf8 {[%clk 00:02:49]}
{[%emt 00:00:06]} 23. Nd4 {[%clk 00:02:20]} {[%emt 00:00:08]} Nxd4 {[%clk
00:02:49]} {[%emt 00:00:04]} 24. cxd4 {[%clk 00:02:17]} {[%emt 00:00:06]} b6
{[%emt 00:00:04]} 25. Qe2 {[%clk 00:01:42]} {[%emt 00:00:35]} Rf3 {[%clk
00:02:46]} {[%emt 00:00:08]} 26. Rd3 {[%clk 00:01:34]} {[%emt 00:00:10]} Rxd3
{[%clk 00:02:31]} {[%emt 00:00:19]} 27. Qxd3 {[%clk 00:01:36]} bxc5 {[%clk
00:02:33]} {[%emt 00:00:01]} 28. Kb1 {[%clk 00:01:35]} {[%emt 00:00:04]} cxd4
{[%clk 00:02:34]} {[%emt 00:00:03]} 29. Rc1 {[%clk 00:01:29]} {[%emt 00:00:09]}
Qxe5 {[%clk 00:02:35]} {[%emt 00:00:02]} 30. Ka1 {[%clk 00:01:21]} {[%emt
00:00:11]} Qe4 {[%clk 00:02:36]} {[%emt 00:00:02]} 31. Qg3 {[%clk 00:01:05]}
{[%emt 00:00:18]} Qf4 {[%clk 00:01:57]} {[%emt 00:00:43]} 32. Qe1 {[%clk
00:01:01]} {[%emt 00:00:06]} Qe3 {[%clk 00:01:50]} {[%emt 00:00:10]} 33. Qd1
{[%clk 00:01:00]} {[%emt 00:00:04]} d3 {[%clk 00:01:43]} {[%emt 00:00:09]} 34.
Be1 {[%clk 00:00:53]} {[%emt 00:00:10]} Qe2 {[%clk 00:01:04]} {[%emt 00:00:42]}
35. Qxe2 {[%clk 00:00:47]} {[%emt 00:00:09]} dxe2 {[%clk 00:01:06]} 36. Rc2
{[%clk 00:00:49]} Rf1 {[%clk 00:01:03]} {[%emt 00:00:06]} 37. Rxe2 {[%emt
00:00:02]} e5 38. Kb1 {[%clk 00:00:49]} {[%emt 00:00:04]} e4 {[%clk 00:01:08]}
{[%emt 00:00:01]} 39. Kc2 {[%clk 00:00:51]} {[%emt 00:00:01]} Kh7 {[%clk
00:01:06]} {[%emt 00:00:05]} 40. h4 {[%clk 00:00:46]} {[%emt 00:00:07]} Kg6
{[%clk 00:01:08]} {[%emt 00:00:02]} 41. b4 {[%clk 00:00:48]} {[%emt 00:00:02]}
Kf5 {[%clk 00:01:09]} {[%emt 00:00:02]} 42. Rf2+ {[%clk 00:00:48]} {[%emt
00:00:02]} Rxf2+ {[%clk 00:01:11]} {[%emt 00:00:01]} 43. Bxf2 {[%clk 00:00:50]}
d4 {[%clk 00:01:14]} 44. Kd2 {[%clk 00:00:51]} {[%emt 00:00:02]} Kf4 {[%clk
00:00:56]} {[%emt 00:00:21]} 45. b5 {[%clk 00:00:52]} {[%emt 00:00:03]} Kf3
{[%clk 00:00:51]} {[%emt 00:00:08]} 46. Be1 {[%clk 00:00:32]} {[%emt 00:00:23]}
Bf8 {[%clk 00:00:39]} {[%emt 00:00:15]} 47. g6 {[%clk 00:00:31]} {[%emt
00:00:04]} d3 {[%clk 00:00:33]} {[%emt 00:00:08]} 48. Kd1 {[%clk 00:00:27]}
{[%emt 00:00:07]} e3 {[%clk 00:00:34]} {[%emt 00:00:02]} 49. Bc3 {[%clk
00:00:24]} {[%emt 00:00:05]} Kf2 {[%clk 00:00:19]} {[%emt 00:00:18]} 50. Bd4
{[%clk 00:00:24]} {[%emt 00:00:03]} Bg7 {[%clk 00:00:18]} {[%emt 00:00:05]} 51.
Bxa7 {[%clk 00:00:24]} {[%emt 00:00:03]} Bh6 {[%clk 00:00:19]} {[%emt
00:00:02]} 52. Bxe3+ {[%clk 00:00:24]} {[%emt 00:00:03]} Kxe3 {[%clk 00:00:21]}
{[%emt 00:00:01]} 53. b6 {[%clk 00:00:26]} Bf8 {[%clk 00:00:09]} {[%emt
00:00:15]} 54. b7 {[%emt 00:00:09]} 1-0

[Event "Paul Kerese Mälestusfestival 2022 Kiirturniir"]
[Site "Pärnu, Estonia Resort Hotel & Spa"]
[Date "????.??.??"]
[Round "6.5"]
[White "Olde, Karl Erik"]
[Black "Shirov, Alexei"]
[Result "1-0"]
[TimeControl "15 minutit partiile + 3 sek käigule"]
[BlackTitle "GM"]
[BlackFideId "2209390"]
[WhiteElo "1804"]
[BlackElo "2621"]

1. d4 {[%clk 00:15:05]} d5 {[%clk 00:15:05]} {[%emt 00:00:01]} 2. c4 {[%clk
00:15:06]} {[%emt 00:00:02]} c6 {[%clk 00:15:07]} 3. e3 {[%clk 00:15:06]}
{[%emt 00:00:02]} Nf6 {[%clk 00:15:02]} {[%emt 00:00:08]} 4. Nf3 {[%clk
00:15:06]} {[%emt 00:00:03]} Bf5 {[%clk 00:14:58]} {[%emt 00:00:06]} 5. Nc3
{[%clk 00:14:54]} {[%emt 00:00:17]} e6 {[%clk 00:15:00]} {[%emt 00:00:01]} 6.
cxd5 {[%clk 00:14:29]} {[%emt 00:00:27]} exd5 {[%clk 00:14:59]} {[%emt
00:00:04]} 7. Bd3 {[%clk 00:14:18]} {[%emt 00:00:14]} Bg6 {[%clk 00:14:46]}
{[%emt 00:00:16]} 8. O-O {[%clk 00:13:58]} {[%emt 00:00:24]} Nbd7 {[%clk
00:14:42]} {[%emt 00:00:07]} 9. a3 {[%clk 00:13:56]} {[%emt 00:00:06]} Bd6
{[%clk 00:14:35]} {[%emt 00:00:09]} 10. b4 {[%clk 00:13:54]} {[%emt 00:00:05]}
b5 {[%clk 00:13:40]} {[%emt 00:00:58]} 11. Re1 {[%clk 00:12:27]} {[%emt
00:01:31]} Ne4 {[%clk 00:13:22]} {[%emt 00:00:20]} 12. Qc2 {[%clk 00:11:38]}
{[%emt 00:00:52]} f5 {[%clk 00:13:16]} {[%emt 00:00:09]} 13. Ne2 {[%clk
00:10:40]} {[%emt 00:01:00]} Rc8 {[%clk 00:12:37]} {[%emt 00:00:41]} 14. Nf4
{[%clk 00:10:31]} {[%emt 00:00:13]} Bf7 {[%clk 00:12:34]} {[%emt 00:00:05]} 15.
Bb2 {[%clk 00:10:23]} {[%emt 00:00:12]} Qc7 {[%clk 00:11:32]} {[%emt 00:01:05]}
16. Ne5 {[%clk 00:09:42]} {[%emt 00:00:44]} Nxe5 {[%clk 00:11:23]} {[%emt
00:00:11]} 17. dxe5 {[%clk 00:09:43]} {[%emt 00:00:02]} Bxe5 {[%clk 00:11:23]}
{[%emt 00:00:03]} 18. Bxe5 {[%clk 00:09:43]} {[%emt 00:00:04]} Qxe5 {[%clk
00:11:24]} {[%emt 00:00:01]} 19. Bxb5 {[%clk 00:09:44]} {[%emt 00:00:03]} O-O
{[%clk 00:11:22]} {[%emt 00:00:04]} 20. Ba6 {[%clk 00:09:04]} {[%emt 00:00:44]}
Rc7 {[%clk 00:11:12]} {[%emt 00:00:13]} 21. Nd3 {[%clk 00:08:45]} {[%emt
00:00:22]} Qf6 {[%clk 00:11:06]} {[%emt 00:00:08]} 22. Nc5 {[%clk 00:08:43]}
{[%emt 00:00:06]} Bg6 {[%clk 00:10:02]} {[%emt 00:01:06]} 23. Bd3 {[%clk
00:07:06]} {[%emt 00:01:40]} Re7 {[%clk 00:10:01]} {[%emt 00:00:04]} 24. Rad1
{[%clk 00:06:35]} {[%emt 00:00:35]} Ng5 {[%clk 00:08:56]} {[%emt 00:01:07]} 25.
Nb3 {[%clk 00:05:56]} {[%emt 00:00:43]} Bh5 {[%clk 00:08:40]} {[%emt 00:00:18]}
26. Be2 {[%clk 00:05:18]} {[%emt 00:00:42]} Bg6 {[%clk 00:08:30]} {[%emt
00:00:13]} 27. Bd3 {[%clk 00:05:09]} {[%emt 00:00:12]} Bh5 {[%clk 00:07:42]}
{[%emt 00:00:51]} 28. Be2 {[%clk 00:05:08]} {[%emt 00:00:04]} Be8 {[%clk
00:07:43]} {[%emt 00:00:01]} 29. Nd4 {[%clk 00:04:23]} {[%emt 00:00:49]} f4
{[%clk 00:07:40]} {[%emt 00:00:06]} 30. exf4 {[%clk 00:02:40]} {[%emt
00:01:47]} Qxf4 {[%clk 00:07:33]} {[%emt 00:00:10]} 31. Nf3 {[%clk 00:02:39]}
{[%emt 00:00:04]} Rxe2 {[%clk 00:05:42]} {[%emt 00:01:55]} 32. Qxe2 {[%clk
00:02:22]} {[%emt 00:00:20]} Bh5 {[%clk 00:05:41]} {[%emt 00:00:03]} 33. Rd3
{[%clk 00:01:45]} {[%emt 00:00:40]} Bxf3 {[%clk 00:05:15]} {[%emt 00:00:29]} 34.
Rxf3 {[%clk 00:01:40]} {[%emt 00:00:08]} Nxf3+ {[%clk 00:05:12]} {[%emt
00:00:05]} 35. Qxf3 {[%clk 00:01:21]} {[%emt 00:00:23]} Qxf3 {[%clk 00:03:29]}
{[%emt 00:01:46]} 36. gxf3 {[%clk 00:01:23]} Kf7 {[%clk 00:03:30]} {[%emt
00:00:02]} 37. Rc1 {[%clk 00:00:57]} {[%emt 00:00:30]} Rc8 {[%clk 00:03:31]}
{[%emt 00:00:01]} 38. Kf1 {[%clk 00:00:56]} {[%emt 00:00:03]} Ke6 {[%clk
00:03:33]} {[%emt 00:00:02]} 39. Ke2 {[%clk 00:00:58]} {[%emt 00:00:01]} Kd6
{[%clk 00:03:25]} {[%emt 00:00:10]} 40. Rc5 {[%clk 00:00:16]} {[%emt 00:00:46]}
Re8+ {[%clk 00:03:19]} {[%emt 00:00:09]} 41. Kd2 {[%clk 00:00:18]} {[%emt
00:00:01]} Re7 {[%clk 00:02:27]} {[%emt 00:00:54]} 42. Ra5 {[%clk 00:00:09]}
{[%emt 00:00:12]} Ke5 {[%clk 00:02:28]} {[%emt 00:00:02]} 43. Kd3 {[%clk
00:00:07]} {[%emt 00:00:06]} Kf4 {[%clk 00:02:18]} {[%emt 00:00:12]} 44. Rc5
{[%clk 00:00:07]} {[%emt 00:00:03]} Kxf3 {[%clk 00:01:29]} {[%emt 00:00:52]} 45.
Rxc6 {[%clk 00:00:09]} {[%emt 00:00:01]} Kxf2 {[%clk 00:01:30]} {[%emt
00:00:02]} 46. Rc2+ {[%clk 00:00:05]} {[%emt 00:00:07]} Kf3 {[%emt 00:00:09]}
47. Kd4 g5 {[%clk 00:01:10]} {[%emt 00:00:15]} 48. Kxd5 {[%clk 00:00:07]}
{[%emt 00:00:05]} g4 {[%clk 00:01:12]} 49. b5 {[%clk 00:00:08]} {[%emt
00:00:02]} Rd7+ {[%clk 00:00:18]} {[%emt 00:00:57]} 50. Kc6 {[%clk 00:00:07]}
{[%emt 00:00:04]} Rd3 {[%clk 00:00:19]} {[%emt 00:00:02]} 51. a4 {[%clk
00:00:08]} {[%emt 00:00:03]} Ra3 {[%clk 00:00:18]} {[%emt 00:00:04]} 52. Rc4
{[%clk 00:00:06]} {[%emt 00:00:05]} Ra2 {[%clk 00:00:14]} {[%emt 00:00:06]} 53.
Kb7 {[%clk 00:00:07]} {[%emt 00:00:03]} Rxh2 {[%clk 00:00:16]} {[%emt
00:00:02]} 54. Kxa7 {[%clk 00:00:08]} {[%emt 00:00:01]} g3 {[%clk 00:00:15]}
{[%emt 00:00:03]} 55. Rc3+ {[%clk 00:00:07]} {[%emt 00:00:05]} Kf4 {[%clk
00:00:11]} {[%emt 00:00:04]} 56. Rc4+ {[%clk 00:00:06]} {[%emt 00:00:06]} Kf3
{[%clk 00:00:08]} {[%emt 00:00:05]} 57. Rc3+ {[%clk 00:00:09]} {[%emt
00:00:02]} Kg4 {[%clk 00:00:10]} 58. Rc4+ {[%clk 00:00:11]} {[%emt 00:00:02]}
Kh3 {[%clk 00:00:12]} 59. Rc7 {[%clk 00:00:09]} {[%emt 00:00:05]} h5 {[%clk
00:00:13]} {[%emt 00:00:01]} 60. b6 {[%clk 00:00:11]} {[%emt 00:00:02]} Ra2
{[%clk 00:00:12]} {[%emt 00:00:03]} 61. Rc4 {[%clk 00:00:09]} {[%emt 00:00:05]}
g2 {[%clk 00:00:13]} {[%emt 00:00:02]} 62. Rc3+ {[%clk 00:00:06]} {[%emt
00:00:06]} Kh2 {[%clk 00:00:12]} {[%emt 00:00:04]} 63. Rc1 {[%clk 00:00:07]}
{[%emt 00:00:02]} Rxa4+ {[%clk 00:00:13]} {[%emt 00:00:02]} 1-0